fUST/lending_fUST_20260129
["ID","MTS","AMOUNT","RATE_DAILY","PERIOD"]
[403907065,1769655051402,-581.34121686,0.00027134,2]
[403907066,1769655051411,-191.0,0.00027386,7]
[403907067,1769655051420,-11589.82744108,0.00027387,2]
[403907068,1769655051431,-296.04,0.00027387,2]
[403907069,1769655051459,-11029.27189161,0.00027387,2]
[403907070,1769655051470,-17169.80209091,0.00027387,2]
[403907071,1769655051479,-1500.394086,0.00027394,2]
[403907072,1769655051488,-1500.0,0.00027394,2]
[403907073,1769655051497,-1500.0,0.00027394,2]
[403907074,1769655051506,-157.1361555,0.00027397,2]
[403907075,1769655051515,-151.0,0.00027397,7]
[403907076,1769655051524,-151.0,0.00027397,7]
[403907077,1769655051533,-151.0,0.00027397,7]
[403907078,1769655051542,-151.0,0.00027397,7]
[403907079,1769655051551,-151.0,0.00027397,7]
[403907080,1769655051560,-270.360949,0.00027397,7]
[403907081,1769655051569,-151.0,0.00027397,7]
[403907082,1769655051577,-151.0,0.00027397,7]
[403907083,1769655051586,-151.0,0.00027397,7]
[403907084,1769655051595,-151.0,0.00027397,7]
[403907085,1769655051604,-151.0,0.00027397,7]
[403907086,1769655051615,-151.0,0.00027397,7]
[403907087,1769655051623,-151.0,0.00027397,7]
[403907088,1769655051632,-151.0,0.00027397,7]
[403907089,1769655051641,-151.0,0.00027397,7]
[403907090,1769655051650,-151.0,0.00027397,7]
[403907091,1769655051659,-151.0,0.00027397,7]
[403907092,1769655051669,-151.0,0.00027397,7]
[403907093,1769655051678,-151.0,0.00027397,7]
[403907094,1769655051688,-151.0,0.00027397,7]
[403907095,1769655051697,-151.0,0.00027397,7]
[403907096,1769655051707,-151.0,0.00027397,7]
[403907097,1769655051716,-151.0,0.00027397,7]
[403907098,1769655051725,-151.0,0.00027397,7]
[403907099,1769655051734,-187.397758,0.00027397,7]
[403907100,1769655051742,-151.0,0.00027397,7]
[403907101,1769655051751,-151.0,0.00027397,7]
[403907102,1769655051760,-151.0,0.00027397,7]
[403907103,1769655051769,-151.0,0.00027397,7]
[403907104,1769655051777,-151.0,0.00027397,7]
[403907105,1769655051786,-151.0,0.00027397,7]
[403907106,1769655051795,-230.40444,0.00027397,7]
[403907107,1769655051804,-1500.0,0.00027451,15]
[403907108,1769655051815,-1500.0,0.00027451,15]
[403907109,1769655051824,-1500.0,0.00027451,15]
[403907110,1769655051833,-1500.0,0.00027451,15]
[403907111,1769655051842,-1500.0,0.00027451,15]
[403907112,1769655051851,-1500.0,0.00027451,15]
[403907113,1769655051860,-1500.0,0.00027451,15]
[403907114,1769655051870,-2110.220269,0.00027451,15]
[403907115,1769655051879,-2150.0,0.00027503,2]
[403907116,1769655051887,-630.0,0.00027503,2]
[403907117,1769655051896,-418.0,0.00027503,2]
[403907118,1769655051905,-418.0,0.00027503,2]
[403907119,1769655051913,-191.0,0.00027616,14]
[403907120,1769655051922,-215.0,0.00027753,26]
[403907121,1769655051931,-250.0,0.00027945,5]
[403907122,1769655051939,-250.0,0.00027945,5]
[403907123,1769655052051,-293.17,0.00028,7]
[403907124,1769655052062,-656.1,0.00028,2]
[403907125,1769655052071,-1000.0,0.00028,2]
[403907126,1769655052079,-1000.0,0.00028,2]
[403907127,1769655052088,-161.04,0.00028,7]
[403907128,1769655052097,-1021.72902135,0.00028,2]
[403907129,1769655052107,-7730.34182738,0.00028031,2]
[403907130,1769655052118,-1000.0,0.00028031,30]
[403907131,1769655052127,-791.0,0.00028031,30]
[403907132,1769655052136,-160.0,0.00028069,6]
[403907133,1769655052146,-5626.99,0.000281,2]
[403907134,1769655052155,-194.6865296,0.00028237,30]
[403907135,1769655052165,-389.3730592,0.00028237,30]
[403907136,1769655052174,-194.6865296,0.00028237,30]
[403907137,1769655052183,-194.6865296,0.00028237,30]
[403907138,1769655052193,-194.6865296,0.00028237,30]
[403907139,1769655052203,-194.6865296,0.00028237,30]
[403907140,1769655052212,-194.6865296,0.00028237,30]
[403907141,1769655052222,-194.6865296,0.00028237,30]
[403907142,1769655052231,-194.6865296,0.00028237,30]
[403907143,1769655052241,-194.6865296,0.00028237,30]
[403907144,1769655052250,-194.6865296,0.00028237,30]
[403907145,1769655052259,-194.6865296,0.00028237,30]
[403907146,1769655052268,-194.6865296,0.00028237,30]
[403907147,1769655052278,-194.6865296,0.00028237,30]
[403907148,1769655052287,-194.6865296,0.00028237,30]
[403907149,1769655052297,-194.6865296,0.00028237,30]
[403907150,1769655052308,-194.6865296,0.00028237,30]
[403907151,1769655052317,-194.6865296,0.00028237,30]
[403907152,1769655052328,-194.6865296,0.00028237,30]
[403907153,1769655052337,-194.6865296,0.00028237,30]
[403907154,1769655052346,-194.6865296,0.00028237,30]
[403907155,1769655052355,-194.6865296,0.00028237,30]
[403907156,1769655052368,-1501.71,0.000284,14]
[403907157,1769655052378,-62324.28719506,0.0002842,4]
[403907158,1769655052480,-2615.97326228,0.0002842,4]
[403907252,1769656232259,-1480.000025,0.00012717,2]
[403907255,1769656232270,-1622.27553149,0.00012717,2]
[403907260,1769656232318,-1897.72444351,0.00012717,2]
[403907262,1769656232328,-164.49097382,0.00012845,2]
[403907264,1769656232336,-500.0,0.00013007,2]
[403907266,1769656232345,-500.0,0.00013273,2]
[403907268,1769656232354,-500.0,0.00013273,2]
[403907270,1769656232362,-300.0,0.00013336,2]
[403907272,1769656232371,-644.0,0.00013336,2]
[403907275,1769656232382,-252945.19100395,0.00013337,2]
[403907465,1769656238205,-2482.10465906,0.00013337,2]
[403907470,1769656238258,-322.24925186,0.00013337,2]
[403907473,1769656238269,-3393.27706792,0.00013337,2]
[403907475,1769656238279,-410.76899137,0.00013337,2]
[403907502,1769656240535,-546.0,0.00013337,2]
[403907814,1769656246430,-566.01528563,0.00013337,2]
[403907816,1769656246441,-1242.12893198,0.00013337,2]
[403907830,1769657226054,-389.13960131,0.00011149,2]
[403907831,1769657226077,-593.61301298,0.00011262,2]
[403907832,1769657230703,-232.20904471,0.00011262,2]
[403907833,1769657232299,-238.59454499,0.00011262,2]
[403907835,1769657315329,-3935.58339732,0.00011262,2]
[403907836,1769657315357,-164.20115434,0.00011464,2]
[403907837,1769657315384,-807.18038429,0.00012,5]
[403907838,1769657315397,-186.0801281,0.00012,5]
[403907839,1769657315406,-192.66,0.00012329,2]
[403907840,1769657315416,-300.0,0.00013228,2]
[403907841,1769657315426,-199.00963676,0.00013228,2]
[403907842,1769657315437,-500.0,0.00013228,2]
[403907843,1769657315446,-586.82703624,0.00013228,2]
[403907844,1769657315455,-500.0,0.00013228,2]
[403907845,1769657315463,-307.79346763,0.00013228,2]
[403907846,1769657315472,-500.0,0.00013228,2]
[403907847,1769657315481,-500.0,0.00013228,2]
[403907848,1769657315490,-163.21312859,0.00013228,2]
[403907849,1769657315508,-164.20115434,0.00013228,2]
[403907850,1769657315520,-172.58571707,0.00013228,2]
[403907851,1769657315529,-500.0,0.00013228,2]
[403907852,1769657315538,-289.03039024,0.00013228,2]
[403907853,1769657315547,-31.64440508,0.00013228,2]
[403907854,1769657315583,-468.35559492,0.00013228,2]
[403907855,1769657315615,-500.0,0.00013228,2]
[403907856,1769657315642,-500.0,0.00013228,2]
[403907857,1769657315674,-500.0,0.00013228,2]
[403907858,1769657315703,-500.0,0.00013228,2]
[403907859,1769657315733,-500.0,0.00013228,2]
[403907860,1769657315762,-466.5,0.00013228,2]
[403907861,1769657315793,-500.0,0.00013228,2]
[403907862,1769657315822,-518.74118731,0.00013228,2]
[403907863,1769657315850,-368.05199597,0.00013228,2]
[403907864,1769657315870,-468.35559492,0.00013228,2]
[403907865,1769657315881,-31.64440508,0.00013228,2]
[403907866,1769657315891,-468.35559492,0.00013228,2]
[403907867,1769657315902,-31.64440508,0.00013228,2]
[403907868,1769657315912,-468.35559492,0.00013228,2]
[403907869,1769657315944,-31.64440508,0.00013228,2]
[403907870,1769657315973,-500.0,0.00013228,2]
[403907871,1769657316004,-500.0,0.00013228,2]
[403907872,1769657316034,-500.0,0.00013228,2]
[403907873,1769657316064,-500.0,0.00013228,2]
[403907874,1769657316097,-500.0,0.00013228,2]
[403907875,1769657316301,-500.0,0.00013228,2]
[403907876,1769657316332,-500.0,0.00013228,2]
[403907877,1769657316362,-500.0,0.00013228,2]
[403907878,1769657316391,-500.0,0.00013228,2]
[403907879,1769657316421,-308.18045523,0.00013228,2]
[403907880,1769657316440,-500.0,0.00013228,2]
[403907881,1769657316452,-500.0,0.00013228,2]
[403907882,1769657316463,-500.0,0.00013228,2]
[403907883,1769657316475,-466.5,0.00013228,2]
[403907884,1769657316506,-33.5,0.00013228,2]
[403907885,1769657316537,-500.0,0.00013228,2]
[403907886,1769657316566,-500.0,0.00013228,2]
[403907887,1769657316598,-228.23752651,0.00013228,2]
[403907888,1769657316618,-500.0,0.00013229,2]
[403907889,1769657316631,-518.74118731,0.00013229,2]
[403907890,1769657316643,-368.05199597,0.00013229,2]
[403907891,1769657316665,-356.7124436,0.00013229,2]
[403907892,1769657316676,-31.64440508,0.00013229,2]
[403907893,1769657316687,-500.0,0.00013229,2]
[403907894,1769657316709,-500.0,0.00013229,2]
[403907895,1769657316720,-500.0,0.00013229,2]
[403907896,1769657316731,-500.0,0.00013229,2]
[403907897,1769657316753,-500.0,0.00013229,2]
[403907898,1769657316775,-500.0,0.00013229,2]
[403907899,1769657316785,-500.0,0.00013229,2]
[403907900,1769657316800,-500.0,0.00013229,2]
[403907901,1769657316811,-500.0,0.00013229,2]
[403907902,1769657316822,-308.18045523,0.00013229,2]
[403907903,1769657316833,-320.36027938,0.00013229,2]
[403907904,1769657316844,-33.5,0.00013229,2]
[403907905,1769657316855,-500.0,0.00013229,2]
[403907906,1769657316866,-500.0,0.00013229,2]
[403907907,1769657316877,-228.23752651,0.00013229,2]
[403907908,1769657316888,-7476.53494698,0.00013229,2]
[403907909,1769657316906,-10000.01,0.00013229,2]
[403907910,1769657316917,-10000.01,0.00013229,2]
[403907911,1769657316928,-10000.01,0.00013229,2]
[403907912,1769657316939,-10000.01,0.00013229,2]
[403907913,1769657321272,-10000.01,0.00013229,2]
[403907914,1769657321379,-10000.01,0.00013229,2]
[403907915,1769657321488,-10000.01,0.00013229,2]
[403907916,1769657321602,-10000.01,0.00013229,2]
[403907917,1769657321703,-10000.01,0.00013229,2]
[403907918,1769657321817,-10000.01,0.00013229,2]
[403907919,1769657321918,-10000.01,0.00013229,2]
[403907920,1769657322005,-10000.01,0.00013229,2]
[403907929,1769657421252,-224.27,0.00012329,2]
[403907930,1769657421280,-594.0,0.00012329,2]
[403907959,1769657432335,-5000.0,0.00013097,2]
[403907961,1769657432344,-1861.65929082,0.00013137,2]
[403907963,1769657432354,-300.0,0.00013227,2]
[403907965,1769657432364,-300.0,0.00013227,2]
[403907967,1769657432373,-300.0,0.00013227,2]
[403907969,1769657432382,-1200.0,0.00013227,2]
[403907971,1769657432391,-500.0,0.00013228,2]
[403907973,1769657432401,-500.0,0.00013228,2]
[403907975,1769657432410,-500.0,0.00013228,2]
[403907977,1769657432419,-500.0,0.00013228,2]
[403907979,1769657432428,-500.0,0.00013228,2]
[403907981,1769657432437,-500.0,0.00013228,2]
[403907983,1769657432446,-458.0,0.00013228,2]
[403907985,1769657432455,-440.38271188,0.00013228,2]
[403908047,1769657440682,-62.36742017,0.00013228,2]
[403908048,1769657440691,-540.45684151,0.00013228,2]
[403908049,1769657440700,-2612.01913554,0.00013229,2]
[403908050,1769657440713,-119620.39210946,0.00013229,2]
[403908074,1769657443900,-3810.72458269,0.00013229,2]
[403908085,1769657446503,-2453.19303306,0.00013229,2]
[403908086,1769657446559,-2757.9695964,0.00013229,2]
[403908094,1769657620169,200.11,0.00030137,120]
[403908100,1769658033775,2472.41,0.00030137,120]
[403908101,1769658138268,10000.0,0.00024658,120]
[403908102,1769658153587,10000.0,0.00026027,120]
[403908103,1769658172031,10000.0,0.00025342,120]
[403908104,1769658215781,10000.0,0.00027397,120]
[403908105,1769658291402,-418.37068182,0.00011962,2]
[403908106,1769658294645,-210.09255411,0.00011962,2]
[403908107,1769658296733,-262.98676407,0.00011962,2]
[403908128,1769658410738,-197.38113074,0.00011962,2]
[403908129,1769658412430,-299.1739447,0.00011962,2]
[403908154,1769658605656,-175.5040566,0.00011998,2]
[403908156,1769658619149,274.72,0.00030137,120]
[403908189,1769658632492,-5000.0,0.00011878,2]
[403908191,1769658632501,-124.4959434,0.00011998,2]
[403908193,1769658632510,-404.0,0.00011998,2]
[403908196,1769658632521,-589.0,0.00011998,2]
[403908197,1769658632530,-27827.0539653,0.00011999,2]
[403908199,1769658632539,-192.87107961,0.00012084,2]
[403908201,1769658632548,-300.0,0.00012238,2]
[403908203,1769658632558,-300.0,0.00012238,2]
[403908205,1769658632567,-300.0,0.00012238,2]
[403908207,1769658632576,-300.0,0.00012238,2]
[403908209,1769658632585,-300.0,0.00012238,2]
[403908211,1769658632594,-300.0,0.00012238,2]
[403908213,1769658632604,-300.0,0.00012238,2]
[403908215,1769658632613,-300.0,0.00012238,2]
[403908217,1769658632622,-300.0,0.00012238,2]
[403908218,1769658632631,-300.0,0.00012238,2]
[403908219,1769658632640,-300.0,0.00012238,2]
[403908221,1769658632649,-300.0,0.00012238,2]
[403908223,1769658632658,-300.0,0.00012238,2]
[403908224,1769658632667,-300.0,0.00012238,2]
[403908225,1769658632680,-300.0,0.00012238,2]
[403908227,1769658632689,-224.27,0.00012329,2]
[403908230,1769658632699,-600.0,0.00012482,2]
[403908232,1769658632709,-1628.95187945,0.000129,2]
[403908250,1769658632839,-412.22581003,0.00013029,2]
[403908253,1769658632888,-1437.86438964,0.00013121,2]
[403908255,1769658632898,-206.6756209,0.00013128,2]
[403908257,1769658632907,-66222.40466672,0.00013129,2]
[403908260,1769658632922,-467.09929999,0.00013129,2]
[403908337,1769658638682,-5957.3965511,0.00013129,2]
[403908410,1769658640763,-342113.54633193,0.00013129,2]
[403908412,1769658640902,-3e-08,0.00013129,2]
[403908413,1769658640914,-61166.953624,0.00013129,2]
[403908430,1769658646769,-1875.73463838,0.00013129,2]
[403908431,1769658646823,-466.63936327,0.00013129,2]
[403908432,1769658646834,-2840.29308191,0.00013129,2]
[403908445,1769658875694,-495.19423008,0.00011874,2]
[403908446,1769658935778,-101.29820361,0.00011874,2]
[403908447,1769658935799,-149.27734932,0.00011994,2]
[403908448,1769658996268,-156.65967262,0.00011994,2]
[403908449,1769658996291,-106.68069549,0.00012115,2]
[403908450,1769658998370,-199.67986037,0.00012115,2]
[403908451,1769658999979,-225.54373952,0.00012115,2]
[403908452,1769659002092,-374.40446122,0.00012115,2]
[403908453,1769659003780,-179.7020063,0.00012115,2]
[403908454,1769659006652,-304.54,0.00012115,2]
[403908455,1769659009544,-303.08,0.00012115,2]
[403908456,1769659011537,-210.90587855,0.00012115,2]
[403908457,1769659014722,-198.99663013,0.00012115,2]
[403908458,1769659017516,-154.54,0.00012115,2]
[403908459,1769659019316,-151.46000003,0.00012115,2]
[403908460,1769659020807,-158.6,0.00012115,2]
[403908461,1769659022293,-151.80242089,0.00012115,2]
[403908462,1769659023771,-295.10211849,0.00012115,2]
[403908463,1769659025319,-157.52,0.00012115,2]
[403908464,1769659029127,-297.8959742,0.00012115,2]
[403908465,1769659031204,-307.18817487,0.00012115,2]
[403908466,1769659032820,-199.28788773,0.00012115,2]
[403908467,1769659034861,-215.94305162,0.00012115,2]
[403908468,1769659037496,-256.86182513,0.00011994,2]
[403908469,1769659039386,-4743.13817487,0.00011994,2]
[403908470,1769659039415,-213.73365026,0.00012236,2]
[403908471,1769659039630,-86.26634974,0.00012236,2]
[403908472,1769659039662,-300.0,0.00012237,2]
[403908473,1769659039693,-300.0,0.00012237,2]
[403908474,1769659039723,-300.0,0.00012237,2]
[403908475,1769659039755,-300.0,0.00012237,2]
[403908476,1769659039785,-300.0,0.00012237,2]
[403908477,1769659039817,-300.0,0.00012237,2]
[403908478,1769659039848,-300.0,0.00012237,2]
[403908479,1769659039879,-300.0,0.00012237,2]
[403908480,1769659039909,-300.0,0.00012237,2]
[403908481,1769659039939,-300.0,0.00012237,2]
[403908482,1769659039968,-300.0,0.00012237,2]
[403908483,1769659039998,-300.0,0.00012237,2]
[403908484,1769659040030,-300.0,0.00012237,2]
[403908485,1769659040209,-300.0,0.00012237,2]
[403908486,1769659040244,-300.0,0.00012237,2]
[403908487,1769659040273,-203.42461499,0.00012359,2]
[403908488,1769659040405,-600.0,0.00012481,2]
[403908489,1769659040431,-329.78064804,0.00013029,2]
[403908490,1769659040458,-1425.33289451,0.00013029,2]
[403908491,1769659040486,-151.0,0.000131,2]
[403908492,1769659040514,-151.0,0.000131,2]
[403908493,1769659040542,-151.0,0.000131,2]
[403908494,1769659040569,-151.0,0.000131,2]
[403908495,1769659040598,-500.0,0.00013127,2]
[403908496,1769659040626,-545.5,0.00013127,2]
[403908497,1769659040654,-312.02005058,0.00013127,2]
[403908498,1769659040681,-500.0,0.00013127,2]
[403908499,1769659040804,-577.05852831,0.00013127,2]
[403908500,1769659040833,-500.0,0.00013127,2]
[403908501,1769659040861,-500.0,0.00013127,2]
[403908502,1769659040890,-592.80395495,0.00013127,2]
[403908503,1769659295696,-158.60326111,0.00012437,2]
[403908504,1769659297219,-447.22310153,0.00012437,2]
[403908505,1769659325688,-319.81157552,0.00012437,2]
[403908506,1769659333575,-180.42655763,0.00012437,2]
[403908507,1769659340751,-250.72573591,0.00012437,2]
[403908508,1769659340774,-63.05711014,0.00012453,2]
[403908509,1769659347489,-323.41667058,0.00012453,2]
[403908510,1769659349558,-210.1384651,0.00012453,2]
[403908511,1769659352266,-243.45148074,0.00012453,2]
[403908512,1769659353710,-155.67304187,0.00012453,2]
[403908513,1769659355148,-512.61223158,0.00012453,2]
[403908514,1769659357148,-156.56078239,0.00012453,2]
[403908515,1769659359822,-151.7352067,0.00012453,2]
[403908516,1769659362352,-220.02953689,0.00012453,2]
[403908517,1769659364415,-162.04742558,0.00012453,2]
[403908518,1769659426614,200.91740047,0.0003,120]
[403908519,1769659460690,-388.21987973,0.00012328,2]
[403908520,1769659462216,-391.7614078,0.00012328,2]
[403908521,1769659463724,-304.54,0.00012328,2]
[403908522,1769659465245,-366.2778852,0.00012328,2]
[403908523,1769659467945,-169.22917762,0.00012328,2]
[403908524,1769659470580,-347.50418237,0.00012328,2]
[403908525,1769659472273,-207.41694966,0.00012328,2]
[403908526,1769659473728,-188.02314326,0.00012328,2]
[403908527,1769659475126,-217.98082238,0.00012328,2]
[403908528,1769659477032,-199.99,0.00012328,2]
[403908529,1769659480708,-278.63087978,0.00012328,2]
[403908530,1769659484278,-174.125,0.00012328,2]
[403908531,1769659487601,-216.43,0.00012328,2]
[403908532,1769659490820,-304.08000003,0.00012328,2]
[403908533,1769659492292,-216.3039329,0.00012328,2]
[403908534,1769659495499,-213.36456942,0.00012328,2]
[403908536,1769659498101,-233.75643572,0.00012328,2]
[403908537,1769659499726,-199.99,0.00012205,2]
[403908538,1769659499752,-131.28404604,0.00012328,2]
[403908539,1769659505869,-359.63433948,0.00012328,2]
[403908540,1769659509066,-91.44734861,0.00012328,2]
[403908541,1769659509089,-78.79944875,0.00012391,2]
[403908542,1769659514999,-5000.0,0.00012267,2]
[403908543,1769659515214,-120.88810734,0.00012391,2]
[403908544,1769659515242,-185.84574653,0.00012453,2]
[403908545,1769659515273,-1737.96083446,0.00012634,2]
[403908546,1769659515461,-4089.38937666,0.00012634,2]
[403908547,1769659515561,-1821.23124668,0.00012634,2]
[403908548,1769659515588,-300.0,0.00013026,2]
[403908549,1769659515616,-232.53377277,0.00013027,2]
[403908550,1769659515645,-605.0,0.00013027,2]
[403908551,1769659515910,-6948.86563768,0.00013028,2]
[403908552,1769659515952,-10000.01,0.00013028,2]
[403908553,1769659517893,-1230.50777552,0.00013028,2]
[403908554,1769659517922,-263.82451844,0.00013029,2]
[403908555,1769659526907,1578.93271213,0.00012929,2]
[403908559,1769659730717,-373.10347004,0.0001277,2]
[403908560,1769659732235,-202.32754627,0.0001277,2]
[403908561,1769659734548,-326.46630435,0.0001277,2]
[403908562,1769659736177,-199.10127413,0.0001277,2]
[403908563,1769659739527,-300.0,0.0001277,2]
[403908564,1769659741679,-257.98034109,0.0001277,2]
[403908565,1769659744298,-172.33905964,0.0001277,2]
[403908575,1769659831672,-1053.32839992,0.00012642,2]
[403908595,1769659837834,-30.21951965,0.00012642,2]
[403908596,1769659837844,-199.74035589,0.00012687,2]
[403908597,1769659837853,-107.04012446,0.00012733,2]
[403908598,1769659837864,-167.94789084,0.00012733,2]
[403908599,1769659837873,-357.90530589,0.0001277,2]
[403908600,1769659837884,-662.95776918,0.0001277,2]
[403908646,1769659840707,-3e-08,0.0001277,2]
[403908647,1769659840719,-2147.81892938,0.0001277,2]
[403908648,1769659840729,-211.05961472,0.00012929,2]
[403908649,1769659840738,-1247.16628267,0.00012929,2]
[403908650,1769659840747,-300.0,0.00013028,2]
[403908651,1769659840756,-332254.86372513,0.00013029,2]
[403908681,1769659845857,-386.39229579,0.00012899,2]
[403908682,1769659845866,-1588.76879031,0.00013029,2]
[403908683,1769659846018,-86996.35044096,0.00013029,2]
[403908684,1769659986650,-300.0,0.00012076,2]
[403908685,1769659986680,-4400.01,0.0001277,2]
[403908686,1769659986895,-599.99,0.0001277,2]
[403908687,1769659986923,-298.02433827,0.00012899,2]
[403908688,1769659986951,-168.8476918,0.00012929,2]
[403908689,1769659987020,-6887.34322773,0.00013005,2]
[403908690,1769659987046,-10000.01,0.00013005,2]
[403908691,1769659987139,-10000.01,0.00013005,2]
[403908692,1769659988155,-4669.35112063,0.00013005,2]
[403908693,1769659988178,-661.30775874,0.00013005,2]
[403908694,1769659997599,-249.0,0.00013028,2]
[403908695,1769660030744,-987.49638809,0.000128,2]
[403908696,1769660032748,-202.73255328,0.000128,2]
[403908697,1769660045749,-231.82,0.000128,2]
[403908698,1769660260404,-300.0,0.00012672,2]
[403908699,1769660406316,-300.0,0.00012545,2]
[403908700,1769660409377,-384.2417059,0.00012545,2]
[403908701,1769660462402,-4315.7582941,0.00012545,2]
[403908702,1769660462429,-195.74554878,0.00012705,2]
[403908703,1769660462492,-977.00231424,0.00012928,2]
[403908704,1769660462614,-114.26818314,0.00012928,2]
[403908705,1769660462644,-300.0,0.00012928,2]
[403908706,1769660462672,-168.84769177,0.00012929,2]
[403908707,1769660462736,-8833.77825018,0.00012929,2]
[403908708,1769660462760,-10000.01,0.00012929,2]
[403908709,1769660462836,-10000.01,0.00012929,2]
[403908710,1769660465241,-10000.01,0.00012929,2]
[403908711,1769660471325,-10000.01,0.00012929,2]
[403908712,1769660471463,-10000.01,0.00012929,2]
[403908713,1769660471583,-10000.01,0.00012929,2]
[403908714,1769660645722,-174.4189176,0.000128,2]
[403908715,1769660648416,-236.91752687,0.000128,2]
[403908716,1769660649955,-181.16819013,0.000128,2]
[403908717,1769660651821,-415.44133926,0.000128,2]
[403908719,1769660675672,-284.91170515,0.00012672,2]
[403908720,1769660679126,-229.50827192,0.00012545,2]
[403908721,1769660680872,-297.40691964,0.00012545,2]
[403908722,1769660683479,-501.51336112,0.00012545,2]
[403908723,1769660685547,-279.7754916,0.00012545,2]
[403908724,1769660687118,-154.08,0.00012545,2]
[403908725,1769660689196,-253.79977918,0.00012545,2]
[403908726,1769660691846,-318.28285642,0.00012545,2]
[403908727,1769660693923,-185.43998297,0.00012545,2]
[403908728,1769660695339,-337.39618255,0.00012545,2]
[403908729,1769660697655,-154.08,0.00012545,2]
[403908730,1769660700015,-156.95097806,0.00012545,2]
[403908731,1769660703893,-156.85237545,0.00012545,2]
[403908732,1769660707278,-273.38350481,0.00012545,2]
[403908733,1769660709116,-300.0,0.00012545,2]
[403908734,1769660710666,-1100.0,0.00012545,2]
[403908742,1769660921901,-5000.0,0.00012296,2]
[403908743,1769660921940,-0.01,0.0001242,2]
[403908744,1769660922214,-723.02426871,0.0001242,2]
[403908745,1769660922247,-191.8306378,0.00012609,2]
[403908746,1769660922275,-1017.5926738,0.00012906,2]
[403908747,1769660922304,-954.86168519,0.00012929,2]
[403908748,1769660922332,-168.84769177,0.00012929,2]
[403908749,1769660933422,3887.69608546,0.00012929,2]
[403908750,1769660933447,1112.30391454,0.00012929,2]
[403908751,1769660942664,1257.62149955,0.00012929,2]
[403908755,1769660950478,1257.62149955,0.00012929,2]
[403908757,1769660958444,5000.0,0.00012929,2]
[403908760,1769660981234,1372.46308636,0.00012929,2]
[403908761,1769660981260,3627.53691364,0.00012929,2]
[403908762,1769660989517,5000.0,0.00012929,2]
[403908764,1769660996954,835.50397455,0.00012929,2]
[403908765,1769660997729,536.96911181,0.00012929,2]
[403908766,1769660997752,1724.61927569,0.00012929,2]
[403908767,1769661004569,603.0,0.00012929,2]
[403908768,1769661006141,5000.0,0.00012929,2]
[403908769,1769661008884,2068.75776269,0.00012929,2]
[403908770,1769661009352,603.63296162,0.00012929,2]
[403908771,1769661009373,1354.22303838,0.00012929,2]
[403908772,1769661011904,151.0,0.00012929,2]
[403908773,1769661012072,250.0,0.00012929,2]
[403908774,1769661012240,668.65185758,0.00012929,2]
[403908775,1769661012377,496.47127164,0.00012929,2]
[403908776,1769661012489,151.0,0.00012929,2]
[403908777,1769661012690,253.7582682,0.00012929,2]
[403908778,1769661014170,5000.0,0.00012929,2]
[403908779,1769661014391,181.08010149,0.00012929,2]
[403908780,1769661019244,1000.0,0.00012929,2]
[403908781,1769661019877,493.82546271,0.00012929,2]
[403908782,1769661022157,-506.17453729,0.00012929,2]
[403908783,1769661022184,-1000.0,0.00012929,2]
[403908784,1769661022212,-1000.0,0.00012929,2]
[403908785,1769661022240,-1000.0,0.00012929,2]
[403908786,1769661025181,-3113.42533882,0.00012929,2]
[403908787,1769661025209,-1374.74738206,0.00012929,2]
[403908788,1769661031291,-5000.0,0.000128,2]
[403908812,1769661031847,-1023.66455824,0.00012929,2]
[403908815,1769661031856,-457.13919548,0.00012929,2]
[403908817,1769661031868,-542.86080452,0.00012929,2]
[403908819,1769661031877,-94.46419548,0.00012929,2]